Cogmind - Beta 17.1 @@@ ROGUE MODE // 2026.09.22 @ 09:36:38 Player: Clog Result: Destroyed by EXE-6 with Concept XC Strikerail Performance ------------- Evolutions (8) 4000 Regions Visited (18) 3600 Robots Destroyed (396) 1980 Value Destroyed (21630) 21630 Prototype IDs (48) 960 Alien Tech Used (3) 600 Bonus (8752) 8752 TOTAL SCORE: 41522 Bonus ------- High Alert Combat Kills 4216 Follower Combat Kills 973 Registered with UFD 300 Met Optimus in HQ 500 Met R17 at Cetus 500 Met R17 at Research 2000 Scanned by Researcher 500 Friendly Fire -237 Cogmind --------- Core Integrity 0/1450 Matter 194/300 Energy 51/100 System Corruption 48% Temperature Cool (0) Movement Core (50) Location -2/Protoforge Parts ------- > --- POWER (2) -------- (None) > --- PROPULSION (6) --- (None) > --- UTILITY (9) ------ Experimental Targeting Computer > --- WEAPON (6) ------- (None) > --- INVENTORY (5) ---- Light Antimatter Reactor Phase Redirector Plasma Lance Peak State ------------ > --- POWER ------------ Particle Reactor Light Quantum Reactor > --- PROPULSION ------- Armored Heavy Treads Advanced Heavy Siege Treads Advanced Heavy Siege Treads > --- UTILITY ---------- Experimental Cooling System Huge Storage Unit Advanced Signal Interpreter Experimental Targeting Computer Experimental Core Analyzer Centrium Medium Armor Plating Advanced Focal Shield AEGIS Remote Shield Advanced Point Defense System > --- WEAPON ----------- KE Penetrator KE Penetrator KE Penetrator Advanced KE Penetrator Helical Railgun Helical Railgun > --- INVENTORY -------- Neutrino Core Armored Heavy Treads Armored Heavy Treads Improved Heavy Siege Treads Centrium Heavy Treads Improved Coolant Injector Experimental Energy Well Long-range Sensor Array Experimental Weapon Shielding Phase Redirector Long-range Tractor Beam Subatomic Replicator Quantum Rifle Matter Neutralizer Long-range Phase Cannon KE Penetrator KE Penetrator Micro-nuke Launcher Sigix Terminator Plasma Lance [Rating: 198] Favorites ----------- Power Light Antimatter Reactor Engine Improved Ion Engine Power Core Micro Nuclear Core Reactor Light Antimatter Reactor Propulsion Light Treads Treads Light Treads Leg Flexi-carbon Leg Wheel Wheel Hover Unit Gravmag Array Flight Unit Improved Flight Unit Utility Huge Storage Unit Device Advanced Heat Sink Storage Huge Storage Unit Processor Experimental Core Analyzer Hackware Makeshift Hacking Suite Protection Centrium Medium Armor Plating Artifact Phase Redirector Weapon KE Penetrator Energy Gun Heavy Beamcaster Energy Cannon Heavy Particle Cannon Ballistic Gun KE Penetrator Launcher Heavy Missile Launcher Special Weapon Improved Plasma Cutter Impact Weapon Hammer Slashing Weapon Chainsword Piercing Weapon Plasma Lance Special Melee Weapon Advanced Datajack Build | -11 -10 -9 -8 -7 -7 -7 -7 -5 -5 -5 -4 -4 -4 -3 -3 -2 -2 -2 ------- Run | Yrd Mat Mat Mat Fac Sto Rec Scr Fac Was Fac Fac Ext Cet Res Qua Res Tes Frg Slots Evolved 16 | . . 2 2 2 . . . 4 . . 2 . . 2 . 2 . . Power 1 | . . . . . . . . . . . 1 . . . . . . . Propulsion 4 | . . 1 1 1 . . . 1 . . . . . . . . . . Utility 7 | . . 1 1 1 . . . 2 . . . . . 1 . 1 . . Weapon 4 | . . . . . . . . 1 . . 1 . . 1 . 1 . . Parts Attached 301 | 1 17 17 36 15 1 1 4 10 . 6 14 54 16 28 16 22 22 21 Power 41 | . 3 4 7 1 . . . . . . 3 8 4 3 1 3 1 3 Engine 10 | . 3 3 4 . . . . . . . . . . . . . . . Core 14 | . . 1 3 1 . . . . . . 1 4 3 1 . . . . Reactor 17 | . . . . . . . . . . . 2 4 1 2 1 3 1 3 Propulsion 80 | . 5 6 15 5 . . . 2 . 1 7 22 3 2 2 3 3 4 Treads 46 | . 4 5 15 . . . . . . . 3 2 3 2 2 3 3 4 Leg 23 | . . . . . . . . . . . 3 20 . . . . . . Wheel 1 | . 1 . . . . . . . . . . . . . . . . . Hover 2 | . . . . . . . . . . 1 1 . . . . . . . Flight 8 | . . 1 . 5 . . . 2 . . . . . . . . . . Utility 94 | . 3 2 4 9 . . 4 4 . 4 1 11 4 14 8 11 8 7 Device 44 | . 2 . . 2 . . 1 3 . 1 1 7 2 8 3 7 5 2 Storage 9 | . 1 . 1 . . . . . . 2 . 2 . 1 1 1 . . Processor 9 | . . . 1 2 . . . 1 . . . . 1 1 2 1 . . Hackware 8 | . . . . 4 . . 3 . . 1 . . . . . . . . Protection 23 | . . 2 2 1 . . . . . . . 2 1 4 2 2 3 4 Artifact 1 | . . . . . . . . . . . . . . . . . . 1 Weapon 86 | 1 6 5 10 . 1 1 . 4 . 1 3 13 5 9 5 5 10 7 Energy Gun 15 | . 2 1 . . . . . . . . . 8 3 . 1 . . . Energy Cannon 8 | . . 1 1 . . . . . . 1 1 . . . 1 . 2 1 Ballistic Gun 47 | 1 3 2 7 . . . . . . . 1 4 2 7 2 5 8 5 Ballistic Cannon . | . . . . . . . . . . . . . . . . . . . Launcher 5 | . . 1 1 . . . . 1 . . . . . 1 . . . 1 Special Weapon 5 | . . . . . . 1 . 3 . . 1 . . . . . . . Impact Weapon 1 | . 1 . . . . . . . . . . . . . . . . . Slashing Weapon 3 | . . . 1 . 1 . . . . . . . . 1 . . . . Piercing Weapon 1 | . . . . . . . . . . . . . . . 1 . . . Special Melee Weapon 1 | . . . . . . . . . . . . 1 . . . . . . Unidentified Prototypes 33 | . . 1 2 . . . . 1 . . . . 4 4 6 2 7 6 Corrupted Parts 1 | . . . . . . . . . . . . . 1 . . . . . System Corruption 3 | . . . . . . . . . . . . . 3 . . . . . Parts Lost 142 | . 9 4 9 . . . . 1 . 5 10 28 3 14 4 10 12 33 Power 21 | . 1 2 2 . . . . . . . 2 6 2 2 . 1 . 3 Propulsion 35 | . 2 . 3 . . . . . . 1 4 12 . 2 1 . 3 7 Utility 35 | . 1 . 2 . . . . 1 . 2 2 2 1 5 1 5 3 10 Weapon 51 | . 5 2 2 . . . . . . 2 2 8 . 5 2 4 6 13 Highest Loss Streak 16 | . 8 2 4 . . . . 1 . 3 6 7 2 9 3 2 4 16 To Critical Strikes 4 | . 1 . . . . . . . . . . 1 . . . . . 2 Average Backups 15 | 6 8 14 14 5 5 5 5 4 4 6 7 12 21 22 23 21 20 17 Power 1 | 1 1 . 1 1 1 1 1 1 1 1 1 1 1 2 4 2 1 2 Propulsion 3 | 3 2 3 6 . . . . . 1 2 2 3 4 3 2 2 2 2 Utility 4 | . 2 2 3 2 2 2 2 1 . . 1 2 7 5 6 6 6 4 Weapon 6 | 1 3 7 3 2 2 2 2 2 2 1 2 4 7 9 9 8 8 7 Tool/Special . | . . . . . . . . . . . . . . . . . . . Unused Backups 63 | 6 3 13 1 2 . . . . 1 . 3 6 6 7 2 6 5 2 Power 9 | 1 1 1 . . . . . . . . . 1 . . 2 1 . 2 Propulsion 13 | 3 . 2 . 1 . . . . . . 2 1 3 . . . 1 . Utility 12 | 1 . 2 1 . . . . . . . . 1 2 4 . 1 . . Weapon 25 | 1 2 7 . 1 . . . . 1 . . 3 1 3 . 3 3 . Tool/Special 4 | . . 1 . . . . . . . . 1 . . . . 1 1 . Average Slot Usage (%) 85 | . 93 95 93 98 100 100 100 91 94 80 68 84 89 82 85 83 82 66 Engine 2 | . 12 6 7 . . . . . . . . . . . . . . . Core 2 | . . 1 1 7 7 7 7 5 5 5 3 4 8 3 . . . . Reactor 3 | . . . . . . . . . . . 1 3 1 4 9 7 8 6 Treads 14 | . 23 32 34 . . . . . . . 2 . 3 13 16 13 12 10 Leg 3 | . 3 . . . . . . . . . . 27 23 . . . . . Flight 4 | . . . . 36 38 38 38 29 29 27 17 . . . . . . . Device 11 | . 11 11 5 6 7 7 7 10 11 5 8 13 21 18 13 11 13 6 Storage 5 | . 14 11 9 . . . . . . 3 4 4 5 4 4 4 4 3 Processor 6 | . . . 8 11 7 7 7 6 5 5 5 3 . 6 6 12 10 8 Hackware 2 | . . . . 14 23 23 23 17 17 13 14 4 . . . . . . Protection 5 | . . 10 8 3 . . . 2 5 2 . 2 4 5 11 6 6 6 Energy Gun 2 | . 9 1 . . . . . . . . . 12 10 3 1 . . . Ballistic Gun 15 | . 14 18 15 7 7 3 . . . . . 4 9 19 20 24 25 20 Peak Build Rating 198 | 6 11 18 30 42 43 43 50 76 73 73 87 105 145 166 177 197 198 189 Average Rating 105 | 6 7 14 24 41 42 41 44 67 72 57 61 86 119 156 167 187 188 151 On Entrance 75 | 6 6 11 17 28 42 43 41 50 73 73 47 40 105 141 160 175 193 182 Avg Prop Armor Cover (%) 14 | . . . . . . . . . . 11 14 22 . 7 . . . . Naked Turns . | . . . . . . . . . . . . . . . . . . . Heaviest Build 182 | 13 34 42 45 16 13 13 11 24 24 29 38 141 145 168 176 182 174 177 Greatest Support 245 | 20 40 60 80 25 25 25 25 33 33 33 219 140 230 230 220 220 220 245 Greatest Overweight (x) 4 | . 2 . . . . . . . . . . 1 1 . . . . 4 Average Overweight (x) . | . . . . . . . . . . . . . . . . . . . Largest Inventory Capacity 25 | 8 15 15 15 15 5 5 5 5 5 10 10 25 25 25 25 25 25 25 Average Capacity 18 | 8 12 15 15 5 5 5 5 5 5 8 9 15 25 25 25 25 25 23 Most Carried 25 | 7 14 15 15 15 5 5 5 5 5 10 10 25 25 25 25 25 25 25 Average Carried 17 | 6 8 14 14 5 5 5 5 4 4 7 8 13 24 24 24 24 24 21 Final Capacity 25 | 8 15 15 15 5 5 5 5 5 5 10 5 25 25 25 25 25 25 5 Final Carried 25 | 7 13 15 15 5 5 5 5 5 5 10 5 25 24 25 25 25 25 3 Class Distribution -------------------- 30% | Scavenger-Executioner 24% | Scavenger-Tank 15% | Mutant 12% | Scavenger-Mutant 10% | Hacker-Sprinter Dominant Class ---------------- Mutant | -10/Materials Mutant | -9/Materials Scavenger-Mutant | -8/Materials Hacker-Scout | -7/Factory Hacker-Sprinter | -7/Storage Hacker-Sprinter | -7/Recycling Hacker-Sprinter | -7/Scraptown Hacker-Sprinter | -5/Factory Hacker-Sprinter | -5/Waste Hacker-Sprinter | -5/Factory Hacker-Sprinter | -4/Factory Scavenger-Tank | -4/Extension Scavenger-Tank | -4/Cetus Scavenger-Tank | -3/Research Scavenger-Tank | -3/Quarantine Scavenger-Executioner | -2/Research Scavenger-Executioner | -2/Testing Scavenger-Executioner | -2/Protoforge Resources | -11 -10 -9 -8 -7 -7 -7 -7 -5 -5 -5 -4 -4 -4 -3 -3 -2 -2 -2 ----------- Run | Yrd Mat Mat Mat Fac Sto Rec Scr Fac Was Fac Fac Ext Cet Res Qua Res Tes Frg Matter Collected 15640 | 220 160 881 1713 230 10 10 . 110 . 265 360 844 480 1563 599 3164 2809 2222 Remotely 5824 | . . . . . . . . . . . . . . 476 238 1715 1978 1417 Salvage Created 21754 | 41 575 1119 2029 238 147 57 . 234 . 267 586 1543 353 2187 735 4674 3990 2979 Parts 1060 | 7 28 73 105 9 4 2 . 14 . 12 20 50 13 110 49 257 162 145 Haulers Intercepted 13 | . 2 2 4 2 . . . 1 . . . . . 1 . 1 . . Recyclers Shooed 14 | 1 . 2 1 1 1 . . . . . . 4 . . 1 1 2 . Parts Field Recycled . | . . . . . . . . . . . . . . . . . . . Retrieved Matter . | . . . . . . . . . . . . . . . . . . . Parts Self-Destructed . | . . . . . . . . . . . . . . . . . . . Prevented . | . . . . . . . . . . . . . . . . . . . Parts Restored . | . . . . . . . . . . . . . . . . . . . Kills | -11 -10 -9 -8 -7 -7 -7 -7 -5 -5 -5 -4 -4 -4 -3 -3 -2 -2 -2 ------- Run | Yrd Mat Mat Mat Fac Sto Rec Scr Fac Was Fac Fac Ext Cet Res Qua Res Tes Frg Combat Hostiles Destroyed 285 | . 13 25 38 . . . . 2 . 7 8 24 5 33 11 42 40 37 Melee 8 | . 2 . . . . . . . . 1 2 3 . . . . . . Guns 218 | . 11 19 27 . . . . . . . 1 17 5 29 11 39 29 30 Cannons 8 | . . 2 3 . . . . . . . . 2 . . . . . 1 AOE 47 | . . 4 8 . . . . 2 . 6 5 . . 4 . 3 10 5 Classes Destroyed 27 | 1 6 2 6 . . . . 1 . . . 1 . 3 2 2 1 2 Worker 19 | . 2 1 . 1 . . . . . . . . . . . 8 5 2 Builder 15 | . . . 2 . . . . . . . . . . . . 8 1 4 Tunneler 3 | 2 . . . . . . . . . . . . . 1 . . . . Hauler 13 | . 2 2 4 2 . . . 1 . . . . . 1 . 1 . . Recycler 22 | . 1 . 2 1 2 1 . . . 1 2 2 . . . 5 5 . Mechanic 5 | . . . 1 . . . . 1 . . . . . . . . . 3 Operator 6 | . . . 3 . . . . 1 . 1 . . . . . . . 1 Drone 1 | . . . . . . . . . . . . . . . . . . 1 Watcher 26 | . 1 4 3 1 . . . 1 . 2 1 . 1 . . 7 2 3 Swarmer 48 | . 6 7 7 . . . . . . 5 . 10 . 6 3 4 . . Grunt 100 | . 7 9 22 . . . . . . . 7 7 . 5 4 11 17 11 Brawler 3 | . . . 1 . . . . . . . . . . . . 1 1 . Duelist 2 | . . 1 1 . . . . . . . . . . . . . . . Protector 2 | . . . 1 . . . . . . . . . . . . . 1 . Researcher 2 | . . . . . . . . . . . . . . . 1 . 1 . Sentry 27 | . . 8 5 . . . . . . . . 3 . 1 . 4 1 5 Demolisher 5 | . . . . . . . . . . . . . . 5 . . . . Hunter 27 | . . . 1 . . . . . . . . 2 . 2 . 8 10 4 Programmer 31 | . . . . . . . . 2 . 2 1 . . 3 3 6 8 6 Heavy 2 | . . . . . . . . . . . . . . . . 2 . . Q-Series 7 | . . . . . . . . . . . . . . . . 6 . 1 Behemoth 4 | . . . . . . . . . . . . 2 . 1 . . . 1 Cetus Guard 5 | . . . . . . . . . . . . . 5 . . . . . Hotshot 4 | . . . . . . . . . . . . . . . . . . 4 Decapitator 2 | . . . . . . . . . . . . . . . . . . 2 Striker 9 | . . . . . . . . . . . . . . 9 . . . . Executioner 1 | . . . . . . . . . . . . . . 1 . . . . Alpha 7 3 | . . . . . . . . . . . . . . . 1 . . 2 Fortress 1 | . . . . . . . . . . . . . . . . . 1 . Protovariant L 1 | . . . . . . . . . . . . . . . . . 1 . Best Kill Streak 9 | 1 6 4 6 2 2 1 . 2 . 6 5 5 3 6 7 6 9 9 Combat Bots Only 7 | . 3 4 5 . . . . 2 . 5 5 5 3 5 7 4 7 6 Max Kills in Single Turn 5 | 1 1 2 2 1 1 1 . 2 . 3 2 1 1 3 2 3 4 5 Gunslinging 1 | . . 1 1 . . . . . . . . . . 1 1 1 . 1 Exploded 4 | . . 2 2 . . . . 2 . 3 2 . . 3 . 3 3 4 Melee 1 | . 1 . . . . . . . . 1 1 1 . . . . . . Uniques/NPCs Destroyed . | . . . . . . . . . . . . . . . . . . . Combat | -11 -10 -9 -8 -7 -7 -7 -7 -5 -5 -5 -4 -4 -4 -3 -3 -2 -2 -2 -------- Run | Yrd Mat Mat Mat Fac Sto Rec Scr Fac Was Fac Fac Ext Cet Res Qua Res Tes Frg Hostile Shots Fired 2538 | . 111 113 255 24 6 . . 21 . 56 215 222 63 275 80 307 322 468 Missed 689 | . 23 30 73 12 5 . . 7 . 24 69 73 22 62 16 80 110 83 Intercepted 26 | . . . . . . . . . . . . . . 1 . 25 . . Hits 1849 | . 88 83 182 12 1 . . 14 . 32 146 149 41 213 64 227 212 385 Melee 54 | . . 3 6 . . . . . . . . . . 33 . . 12 . Projectile 1795 | . 88 80 176 12 1 . . 14 . 32 146 149 41 180 64 227 200 385 AOE 20 | . . . 2 . . . . . . . . . . 5 . 13 . . Critical Strikes 102 | . 3 3 6 . . . . 2 . 2 15 7 7 24 6 4 6 17 Actively Blocked 1 | . . . . . . . . . . . . . . . . . 1 . Part Disruptions 3 | . . . . . . . . . . . 1 . . 1 . . 1 . Damage Taken 39190 | . 1013 1174 2702 152 5 . . 233 . 554 2855 3375 1114 5764 1011 5333 4927 8978 Core 3601 | . 193 171 233 60 . . . 46 . 142 336 526 27 354 23 125 320 1045 Absorbed by Shields 941 | . . . . . . . . 53 . 66 15 . . 464 263 49 . 31 Reduced by Siege Mode 2957 | . . . . . . . . . . . 291 . . 505 46 586 522 1007 Redirected to Core 10 | . . . . . . . . . . . . . . . . . . 10 Redirected to Shielding 457 | . . . . . . . . . . . . . . . . . 101 356 Ignored by Resistances 1702 | . . . . . . . . . . . . . . . . 172 575 955 Regen/Repaired (Parts) 866 | . . . . . . . . . . . 465 . . 401 . . . . Core Remaining (%) 62 | 100 22 57 57 . . . 91 . . 81 . . 22 . 71 . . . Volleys Fired 888 | 10 53 89 184 10 . . . 7 . 9 18 80 27 69 20 116 95 101 Largest 6 | 2 2 2 2 1 . . . 1 . 1 1 4 4 5 5 6 6 6 Hottest 276 | 70 105 98 98 25 . . . 39 . 39 81 276 228 263 188 261 212 200 Shots Fired 2886 | 20 101 165 342 10 . . . 7 . 9 18 251 82 286 82 563 473 477 Gun 2780 | 20 101 159 302 10 . . . . . . 9 247 82 284 82 561 464 459 Cannon 56 | . . 3 31 . . . . . . . 2 4 . . . . 2 14 Launcher 45 | . . 3 9 . . . . 3 . 8 7 . . 2 . 2 7 4 Special 5 | . . . . . . . . 4 . 1 . . . . . . . . Kinetic 2468 | 10 51 157 302 10 . . . . . . 9 61 51 264 81 549 464 459 Thermal 346 | 10 50 5 27 . . . . . . . . 186 31 20 . . 2 15 Explosive 44 | . . 3 9 . . . . 3 . 8 7 . . 2 . 2 7 3 Electromagnetic 23 | . . . 4 . . . . . . . 2 4 . . 1 12 . . Robot Hit Streak 45 | 14 8 16 15 1 . . . 4 . 5 10 14 7 14 23 45 34 35 Robot Miss Streak 14 | 2 3 3 7 3 . . . 4 . 1 1 4 3 14 1 4 2 9 Penetration Max 2 | . . . . . . . . . . . . 1 1 2 1 1 2 1 Secondary Targets 49 | . 2 1 6 . . . . . . . . 1 2 11 4 7 10 5 Max Gunslinging Chain 2 | . 1 1 1 . . . . . . . . 1 1 2 1 1 1 1 Shots Hit Robots 2010 | 15 74 113 209 12 3 1 . 11 . 13 24 157 51 182 66 381 352 346 Core Hits 985 | 4 26 46 98 3 1 . . 7 . 16 25 62 23 86 37 185 200 166 Critical Kills 31 | . 1 . . . . . . . . . . . . 2 1 14 5 8 Critical Parts Destroyed 44 | . 2 1 1 . . . . . . . . 1 1 1 1 20 10 6 Critical Strikes 104 | 1 4 1 1 1 . . . 1 . . 2 12 2 4 2 38 18 17 Burn 14 | 1 1 . . . . . . . . . . 11 1 . . . . . Meltdown 2 | . . . . . . . . . . . . . . . . . 1 1 Destroy 81 | . . 1 1 . . . . . . . . 1 1 4 2 38 17 16 Smash 3 | . 3 . . . . . . . . . . . . . . . . . Sever 4 | . . . . 1 . . . 1 . . 2 . . . . . . . Melee Attacks 208 | . 9 2 2 43 4 1 . 55 . 37 29 10 . 1 6 6 3 . Impact 11 | . 9 2 . . . . . . . . . . . . . . . . Slashing 180 | . . . 2 43 4 1 . 55 . 37 29 8 . 1 . . . . Piercing 15 | . . . . . . . . . . . . . . . 6 6 3 . Sneak Attacks 20 | . 3 . 1 4 2 1 . 2 . 1 2 3 . . . 1 . . Combat Hostiles . | . . . . . . . . . . . . . . . . . . . Follow-up Attacks . | . . . . . . . . . . . . . . . . . . . Damage Inflicted 60617 | 151 1060 2105 4468 544 211 96 . 590 . 1365 1759 3948 1493 5685 1926 10565 10578 14073 Guns 43858 | 151 744 1675 3071 49 . . . . . . 175 3564 1493 5071 1926 10100 7999 7840 Cannons 980 | . . 50 478 . . . . . . . 36 61 . . . . 10 345 Explosions 12957 | . . 371 843 . . . . 256 . 1032 1010 . . 614 . 381 2569 5881 Melee 2720 | . 316 . 76 495 211 96 . 334 . 333 538 251 . . . 70 . . Ramming 102 | . . 9 . . . . . . . . . 72 . . . 14 . 7 Kinetic 39355 | 51 287 1661 3071 49 . . . . . . 175 790 1010 4720 1877 9825 7999 7840 Thermal 9975 | 100 457 238 425 . . . . . . . . 2774 483 351 . . 10 5137 Explosive 7991 | . . 197 843 . . . . 256 . 1032 1010 . . 614 . 381 2569 1089 Electromagnetic 474 | . . . 53 . . . . . . . 36 61 . . 49 275 . . Impact 316 | . 316 . . . . . . . . . . . . . . . . . Slashing 2334 | . . . 76 495 211 96 . 334 . 333 538 251 . . . . . . Piercing 70 | . . . . . . . . . . . . . . . . 70 . . Highest Corruption 48 | . . . . . . . . 3 3 3 7 9 12 6 14 17 29 48 Average Corruption 13 | . . . . . . . . 2 3 3 5 8 11 3 9 6 23 32 Corruption Purged . | . . . . . . . . . . . . . . . . . . . Corruption Blocked . | . . . . . . . . . . . . . . . . . . . Effects 418 | . . . . . . . . 1 1 6 2 63 22 19 27 56 117 104 Message Errors 92 | . . . . . . . . . 1 3 . 13 6 6 5 21 22 15 Matter Fused 83 | . . . . . . . . . . . 1 13 5 4 5 7 31 17 Heat Flow Errors 34 | . . . . . . . . . . 1 1 4 . 2 3 3 13 7 Energy Discharges 41 | . . . . . . . . . . 1 . 7 3 3 6 6 7 8 Parts Rejected 8 | . . . . . . . . . . 1 . 2 . . . 1 1 3 Parts Fused 5 | . . . . . . . . . . . . 3 . . . . . 2 Data Loss (minor) 33 | . . . . . . . . . . . . 7 3 2 1 4 6 10 Data Loss (major) 20 | . . . . . . . . . . . . 2 1 . 1 3 5 8 Misfires 14 | . . . . . . . . . . . . 1 . 1 1 1 5 5 Alerts 11 | . . . . . . . . 1 . . . 4 1 . 1 2 1 1 Misdirections 6 | . . . . . . . . . . . . . . . 1 . 1 4 Weapon Failures 71 | . . . . . . . . . . . . 7 3 1 3 8 25 24 Overload Shots . | . . . . . . . . . . . . . . . . . . . Overflow Damage 1184 | . 129 69 74 132 89 56 . 94 . 109 64 10 . 48 . . 91 219 Projectiles 15 | . . . 15 . . . . . . . . . . . . . . . Explosions 547 | . . 69 13 . . . . 69 . 38 . . . 48 . . 91 219 Melee 622 | . 129 . 46 132 89 56 . 25 . 71 64 10 . . . . . . Knockbacks 3 | . 2 . . . . . . . . . . 1 . . . . . . Impact 3 | . 2 . . . . . . . . . . 1 . . . . . . Kinetic . | . . . . . . . . . . . . . . . . . . . Secondary . | . . . . . . . . . . . . . . . . . . . Self-Inflicted Damage 260 | . . . 47 . . . . . . 30 100 . . . . 83 . . Shots 8 | . . . 2 . . . . . . 1 4 . . . . 1 . . Rammed 6 | . . 1 1 . . . . . . . . 1 . . . 2 . 1 Targets Rammed 13 | . . 2 1 . . . . . . . . 7 . . . 2 . 1 Kicked 6 | . . . . . . . . . . . . 6 . . . . . . Crushed 1 | . . 1 . . . . . . . . . . . . . . . . Highest Temperature 432 | 90 355 121 272 15 . . . 351 . 272 195 432 . 241 171 423 192 327 Average Temperature 75 | 32 116 30 38 7 . . . 192 . 132 53 118 . 55 70 174 84 87 Received Heat Transfer 6586 | . 519 417 1206 48 . . . . . 36 607 703 18 667 137 381 414 1433 Effects 4 | . . . . . . . . . . . . 4 . . . . . . Shutdowns 3 | . . . . . . . . . . . . 3 . . . . . . Energy Bleed 1 | . . . . . . . . . . . . 1 . . . . . . Siege Activations 54 | . . . . . . . . . . . 1 . . 9 2 16 16 10 Total Turns 1203 | . . . . . . . . . . . 12 . . 144 57 318 450 222 Longest Duration 98 | . . . . . . . . . . . 12 . . 50 45 53 69 98 Martial Activations . | . . . . . . . . . . . . . . . . . . . Shielding Activations . | . . . . . . . . . . . . . . . . . . . Robots Disrupted . | . . . . . . . . . . . . . . . . . . . Combat Hostiles . | . . . . . . . . . . . . . . . . . . . Robots Corrupted 1 | . 1 . . . . . . . . . . . . . . . . . Combat Hostiles . | . . . . . . . . . . . . . . . . . . . Parts Fried 5 | . 2 . . . . . . . . . . 1 . . . 2 . . Impact Corruptions 4 | . 3 . . . . . . . . . . 1 . . . . . . Robots Melted 4 | . . . . . . . . . . . . 2 . . . . 1 1 Combat Hostiles 4 | . . . . . . . . . . . . 2 . . . . 1 1 Parts Melted 18 | . 1 . 2 . . . . . . . . 9 . 2 . . 4 . Heat Transferred 9454 | 370 1347 211 629 . . . . . . . . 5513 777 425 . . . 182 Parts Sabotaged 1 | . . . . . . . . . . . . . . . . . 1 . Parts Stolen . | . . . . . . . . . . . . . . . . . . . Parts Stripped . | . . . . . . . . . . . . . . . . . . . Power Chain Reactions . | . . . . . . . . . . . . . . . . . . . Alert | -11 -10 -9 -8 -7 -7 -7 -7 -5 -5 -5 -4 -4 -4 -3 -3 -2 -2 -2 ------- Run | Yrd Mat Mat Mat Fac Sto Rec Scr Fac Was Fac Fac Ext Cet Res Qua Res Tes Frg Maximum Alert Level 5 | . . 1 2 1 . 1 . . . 2 1 2 . 2 1 3 4 5 Low Security (%) 40 | 100 100 75 7 4 100 82 . 100 100 46 73 25 100 82 19 20 . . Level 1 24 | . . 24 54 95 . 17 . . . 50 26 62 . 13 80 4 . . Level 2 22 | . . . 37 . . . . . . 2 . 12 . 4 . 58 45 51 Level 3 9 | . . . . . . . . . . . . . . . . 17 37 43 Level 4 1 | . . . . . . . . . . . . . . . . . 17 . Level 5 . | . . . . . . . . . . . . . . . . . . 5 High Security . | . . . . . . . . . . . . . . . . . . . Max Security . | . . . . . . . . . . . . . . . . . . . Peak Influence 2062 | 5 116 326 677 304 163 224 . 105 29 402 359 490 125 415 291 969 1217 2062 Initial 659 | . . 7 130 299 124 59 . . 29 13 196 156 119 21 227 121 542 659 Average 342 | 1 37 136 376 254 141 177 . 26 24 212 193 246 70 95 230 509 811 790 Influence Increases 12471 | 10 416 790 1226 188 59 205 . 278 . 649 510 1369 268 943 355 1618 1354 2233 Destroy 0b10 Robot/C 6080 | . 260 500 740 . . . . 40 . 140 160 820 160 660 240 840 800 720 Destroy 0b10 Robot/NC 575 | 10 30 35 80 25 10 5 . 20 . 20 15 20 10 10 . 145 70 70 Destroy Leader 1226 | . 66 152 164 6 . . . 14 . 24 32 80 . 152 30 206 124 176 Allied During Kill 404 | . . . . . . . . . . . . 340 57 7 . . . . Successful Hack 170 | . 30 8 10 . 4 5 . 13 . 21 21 18 . 31 2 7 . . Select Force Hacks 210 | . 30 . . . . 180 . . . . . . . . . . . . Disable Machine 1215 | . . 30 60 30 15 . . 30 . 30 15 30 15 15 75 75 90 705 Destroy Structure 1646 | . . 35 82 22 . . . 116 . 144 102 16 26 68 8 255 225 547 Partial Spotted 120 | . . . . 15 30 15 . 15 . 30 . . . . . . . 15 Lose Combat Pursuer 825 | . . 30 90 90 . . . 30 . 240 165 45 . . . 90 45 . Influence Decreases 10431 | 10 398 500 875 574 179 134 224 194 65 266 592 1475 447 573 544 869 1147 1365 Entered New Map 2765 | . . 11 178 360 149 94 224 . 55 6 206 164 95 14 178 95 423 513 Time Decay 5667 | 10 308 459 607 214 30 30 . 184 10 190 286 601 222 390 326 674 604 522 Lost Part 1400 | . 90 30 90 . . . . 10 . 50 100 280 30 130 40 100 120 330 Lost Ally 449 | . . . . . . 10 . . . 20 . 280 100 39 . . . . Purge Threat 150 | . . . . . . . . . . . . 150 . . . . . . Squads Dispatched 77 | . 2 3 6 1 . . . 5 . 6 5 5 . 8 4 12 11 9 Investigation 27 | . 1 1 1 . . . . 3 . 5 3 3 . 5 . 1 . 4 Extermination 20 | . . . . 1 . . . 2 . . 2 . . . 1 7 4 3 Reinforcement 24 | . 1 2 3 . . . . . . 1 . 2 . 3 3 4 4 1 Assault 5 | . . . 1 . . . . . . . . . . . . . 3 1 Garrison 1 | . . . 1 . . . . . . . . . . . . . . . Intercept . | . . . . . . . . . . . . . . . . . . . Searches Triggered . | . . . . . . . . . . . . . . . . . . . Construction Impeded 2 | . . . . . . . . . . . . 1 . . . . 1 . Haulers Reinforced 2 | . . . . . . . . . . . . . . 1 . 1 . . Active Scanning Responses . | . . . . . . . . . . . . . . . . . . . Cargo Convoy Interrupts . | . . . . . . . . . . . . . . . . . . . Stealth | -11 -10 -9 -8 -7 -7 -7 -7 -5 -5 -5 -4 -4 -4 -3 -3 -2 -2 -2 --------- Run | Yrd Mat Mat Mat Fac Sto Rec Scr Fac Was Fac Fac Ext Cet Res Qua Res Tes Frg Distress Signals 33 | . 1 3 1 1 1 . . . . 4 . 5 2 9 . 3 1 2 Communications Jammed . | . . . . . . . . . . . . . . . . . . . Distress Signals . | . . . . . . . . . . . . . . . . . . . Times Spotted 491 | . 20 36 58 12 2 . . 10 6 32 20 51 10 49 14 59 57 55 Peak Tracking Total 11 | . 8 5 7 7 3 . . 4 6 11 8 5 5 7 6 5 7 8 Tactical Retreats 32 | . . 1 6 2 . . . 1 . 7 7 2 . . . 5 1 . Traps | -11 -10 -9 -8 -7 -7 -7 -7 -5 -5 -5 -4 -4 -4 -3 -3 -2 -2 -2 ------- Run | Yrd Mat Mat Mat Fac Sto Rec Scr Fac Was Fac Fac Ext Cet Res Qua Res Tes Frg Traps Triggered 9 | . 1 . . . . . . 1 . 1 . 3 . 2 . . . 1 Indirectly . | . . . . . . . . . . . . . . . . . . . Trap Hack Attempts . | . . . . . . . . . . . . . . . . . . . Triggered . | . . . . . . . . . . . . . . . . . . . Disarmed . | . . . . . . . . . . . . . . . . . . . Reprogrammed . | . . . . . . . . . . . . . . . . . . . Reused . | . . . . . . . . . . . . . . . . . . . Traps Extracted . | . . . . . . . . . . . . . . . . . . . Installed . | . . . . . . . . . . . . . . . . . . . Triggered . | . . . . . . . . . . . . . . . . . . . Machines | -11 -10 -9 -8 -7 -7 -7 -7 -5 -5 -5 -4 -4 -4 -3 -3 -2 -2 -2 ---------- Run | Yrd Mat Mat Mat Fac Sto Rec Scr Fac Was Fac Fac Ext Cet Res Qua Res Tes Frg Machines Disabled 90 | . . 2 4 2 1 . . 2 . 2 1 2 1 1 5 5 6 56 Max in Single Turn 53 | . . 1 1 1 1 . . 1 . 1 1 1 1 1 1 1 2 53 Garrison Access 4 | . . . 1 1 1 . . . . . . . . 1 . . . . Energy Cycler 1 | . . . . . . . . . . . . 1 . . . . . . Machines Repaired . | . . . . . . . . . . . . . . . . . . . Machines Dismantled 3 | . . . . . . . . 1 . . . 1 1 . . . . . Machines Sabotaged . | . . . . . . . . . . . . . . . . . . . Overloaded Fab Kills . | . . . . . . . . . . . . . . . . . . . Hacking | -11 -10 -9 -8 -7 -7 -7 -7 -5 -5 -5 -4 -4 -4 -3 -3 -2 -2 -2 --------- Run | Yrd Mat Mat Mat Fac Sto Rec Scr Fac Was Fac Fac Ext Cet Res Qua Res Tes Frg Machines Accessed 95 | . 6 5 3 3 5 9 4 9 . 9 7 5 . 11 6 6 1 6 Terminals 48 | . 5 4 1 1 4 3 . 6 . 3 3 3 . 2 5 6 . 2 Fabricators 5 | . . . . . . . . . . . 2 . . 3 . . . . Repair Stations 7 | . . . . . . . . 1 . . 1 . . 2 1 . 1 1 Recycling Units 22 | . 1 . . . . 6 . 2 . 5 1 2 . 2 . . . 3 Scanalyzers 3 | . . 1 1 . . . . . . 1 . . . . . . . . Garrison Access 6 | . . . 1 2 1 . . . . . . . . 2 . . . . Total Hacks 172 | . 13 12 8 3 11 13 7 19 . 15 13 10 . 18 7 8 1 14 Successful 91 | . 6 5 4 1 9 11 7 11 . 12 9 4 . 7 3 1 . 1 Failed 79 | . 7 6 4 2 2 1 . 8 . 3 4 6 . 11 4 7 1 13 Catastrophic 28 | . 1 1 1 1 1 . . 1 . 1 1 1 . 6 2 4 . 7 Database Lockouts 2 | . . 1 . . . 1 . . . . . . . . . . . . Manual 78 | . 11 3 4 1 2 9 . 9 . 11 5 6 1 5 1 3 . 7 Terminals 100 | . 12 10 5 1 9 7 . 15 . 8 5 8 . 3 6 8 . 3 Fabricators 10 | . . . . . . . . . . . 5 . . 5 . . . . Repair Stations 13 | . . . . . . . . 2 . . 2 . . 3 1 . 1 4 Recycling Units 28 | . 1 . . . . 6 . 2 . 5 1 2 . 4 . . . 7 Scanalyzers 6 | . . 2 2 . . . . . . 2 . . . . . . . . Garrison Access 8 | . . . 1 2 2 . . . . . . . . 3 . . . . Terminal Hacks 45 | . 1 3 2 . 7 5 7 8 . 3 2 2 . 1 3 1 . . Record 15 | . . . . . 2 . 6 5 . . . . . . 2 . . . Part Schematic 4 | . . . . . . 3 . . . 1 . . . . . . . . Prototype ID Bank 1 | . . . . . . 1 . . . . . . . . . . . . Open Door 3 | . . . . . 2 . . . . . . . . . 1 . . . Open DSF 1 | . . . . . . . . . . . . . . 1 . . . . Level Access Points 2 | . . . . . . . . . . 1 1 . . . . . . . Branch Access Points 6 | . . 1 1 . 1 . . 1 . 1 . . . . . 1 . . Fabricator Index 1 | . . . . . . . . . . . 1 . . . . . . . Unreport Threat 1 | . . . . . . . . . . . . 1 . . . . . . Locate Traps 6 | . 1 2 1 . . . . 1 . . . 1 . . . . . . Recall Investigation 1 | . . . . . . . . 1 . . . . . . . . . . Hauler Manifests 1 | . . . . . 1 . . . . . . . . . . . . . Zone Layout 2 | . . . . . 1 1 . . . . . . . . . . . . Proto ID Catalog 1 | . . . . . . . 1 . . . . . . . . . . . Fabricator Hacks 6 | . . . . . . . . . . . 4 . . 2 . . . . Load Schematic 3 | . . . . . . . . . . . 2 . . 1 . . . . Build 3 | . . . . . . . . . . . 2 . . 1 . . . . Repair Station Hacks 6 | . . . . . . . . 1 . . 2 . . 2 . . . 1 Scan Component 4 | . . . . . . . . 1 . . 1 . . 1 . . . 1 Repair 2 | . . . . . . . . . . . 1 . . 1 . . . . Recycling Unit Hacks . | . . . . . . . . . . . . . . . . . . . Scanalyzer 5 | . . 2 1 . . . . . . 2 . . . . . . . . Insert Component 1 | . . . . . . . . . . 1 . . . . . . . . Analyze 1 | . . . . . . . . . . 1 . . . . . . . . Retrieve Study 3 | . . 2 1 . . . . . . . . . . . . . . . Garrison Access Hacks 4 | . . . 1 1 1 . . . . . . . . 1 . . . . Seal Access 4 | . . . 1 1 1 . . . . . . . . 1 . . . . Unauthorized Hacks 25 | . 5 . . . 1 6 . 2 . 7 1 2 . 1 . . . . Terminals 7 | . 4 . . . 1 . . . . 2 . . . . . . . . Assimilate 4 | . 1 . . . 1 . . . . 2 . . . . . . . . Skim 3 | . 3 . . . . . . . . . . . . . . . . . Fabricators . | . . . . . . . . . . . . . . . . . . . Repair Stations . | . . . . . . . . . . . . . . . . . . . Recycling Units 18 | . 1 . . . . 6 . 2 . 5 1 2 . 1 . . . . Tunnel 7 | . 1 . . . . 6 . . . . . . . . . . . . Fedlink 11 | . . . . . . . . 2 . 5 1 2 . 1 . . . . Scanalyzers . | . . . . . . . . . . . . . . . . . . . Garrison Access . | . . . . . . . . . . . . . . . . . . . Data Cores Recovered 3 | . . . 1 . . . . . . 1 . . . . . . . 1 Used 1 | . . . . . . . . . . 1 . . . . . . . . Hacking Detections 59 | . 4 4 1 2 2 2 . 6 . 3 5 3 . 11 4 5 1 6 Full Trace Events 15 | . 1 1 1 . . . . 1 . . 2 1 . 3 . 1 . 4 Feedback Events 3 | . . . . . . . . . . . . 1 . 1 . . . 1 Corruption 3 | . . . . . . . . . . . . 1 . 1 . . . 1 Feedback Blocked . | . . . . . . . . . . . . . . . . . . . Robot Schematics Acquired . | . . . . . . . . . . . . . . . . . . . Robots Built . | . . . . . . . . . . . . . . . . . . . Authchips . | . . . . . . . . . . . . . . . . . . . Time . | . . . . . . . . . . . . . . . . . . . Total Robot Build Rating . | . . . . . . . . . . . . . . . . . . . Part Schematics Acquired 9 | . . . . . . 3 . . . 2 . . . . 1 . 3 . Parts Built 2 | . . . . . . . . . . . 2 . . . . . . . Authchips . | . . . . . . . . . . . . . . . . . . . Time 292 | . . . . . . . . . . . 175 . . 117 . . . . Total Part Build Rating 14 | . . . . . . . . . . . 14 . . . . . . . Part Studies Acquired 3 | . . 2 1 . . . . . . . . . . . . . . . Parts Repaired 2 | . . . . . . . . . . . 1 . . 1 . . . . Time 71 | . . . . . . . . . . . 43 . . 28 . . . . Parts Recycled . | . . . . . . . . . . . . . . . . . . . Recycled Matter . | . . . . . . . . . . . . . . . . . . . Retrieved Matter . | . . . . . . . . . . . . . . . . . . . Retrieved Components . | . . . . . . . . . . . . . . . . . . . Parts Scanalyzed 1 | . . . . . . . . . . 1 . . . . . . . . Part Schematics Acquired 1 | . . . . . . . . . . 1 . . . . . . . . Parts Damaged . | . . . . . . . . . . . . . . . . . . . Bothacking | -11 -10 -9 -8 -7 -7 -7 -7 -5 -5 -5 -4 -4 -4 -3 -3 -2 -2 -2 ------------ Run | Yrd Mat Mat Mat Fac Sto Rec Scr Fac Was Fac Fac Ext Cet Res Qua Res Tes Frg Used RIF Installer . | . . . . . . . . . . . . . . . . . . . Robots Hacked 1 | . . . . . . . . 1 . . . . . . . . . . Non-combat 1 | . . . . . . . . 1 . . . . . . . . . . Combat . | . . . . . . . . . . . . . . . . . . . Robot Hacks Applied 1 | . . . . . . . . 1 . . . . . . . . . . find_chute 1 | . . . . . . . . 1 . . . . . . . . . . Relay Couplers Released 3 | . . . . . . . . . . . . . . . . . 3 . Programmers 3 | . . . . . . . . . . . . . . . . . 3 . Fabnet Peak Effective % . | . . . . . . . . . . . . . . . . . . . Robots Rewired 25 | . . . . . . . . . . . . 25 . . . . . . Allies Hacked . | . . . . . . . . . . . . . . . . . . . Hacks Repelled . | . . . . . . . . . . . . . . . . . . . Allies | -11 -10 -9 -8 -7 -7 -7 -7 -5 -5 -5 -4 -4 -4 -3 -3 -2 -2 -2 -------- Run | Yrd Mat Mat Mat Fac Sto Rec Scr Fac Was Fac Fac Ext Cet Res Qua Res Tes Frg Total Allies 29 | . . . . . 1 . . . . 2 . 26 . . . . . . Largest Group 12 | . . . . . 1 1 . . . 2 . 12 7 2 . . . . Highest-Rated Group 507 | . . . . . 10 10 . . . 36 . 507 299 92 . . . . Highest-Rated Ally 51 | . . . . . 10 10 . . . 26 . 51 51 51 . . . . Initial UFD Resources 98 | . . . . . . . . 37 51 51 65 75 81 84 94 98 98 98 Total Orders 3 | . . . . . . . . . . . . 3 . . . . . . STAY 1 | . . . . . . . . . . . . 1 . . . . . . ROAM 1 | . . . . . . . . . . . . 1 . . . . . . FOLLOW 1 | . . . . . . . . . . . . 1 . . . . . . Ally Attacks 173 | . . . . . . . . . . . . 110 53 10 . . . . Total Damage 4177 | . . . . . . . . . . . . 3071 1037 69 . . . . Kills 28 | . . . . . . . . . . . . 24 4 . . . . . Allies Corrupted . | . . . . . . . . . . . . . . . . . . . Allies Melted . | . . . . . . . . . . . . . . . . . . . Intel | -11 -10 -9 -8 -7 -7 -7 -7 -5 -5 -5 -4 -4 -4 -3 -3 -2 -2 -2 ------- Run | Yrd Mat Mat Mat Fac Sto Rec Scr Fac Was Fac Fac Ext Cet Res Qua Res Tes Frg Active Infowar (turns) 11182 | . 760 1922 1215 449 73 78 319 702 34 177 . . 62 1915 1 2387 1088 . Optics 1977 | . . . . . . . . . . . . . 62 1915 . . . . Sensors 5304 | . . . . 446 73 78 319 702 34 177 . . . . . 2387 1088 . Seismic 3897 | . 760 1922 1215 . . . . . . . . . . . . . . . T.N.C. 224 | . . . . 32 . . . 192 . . . . . . . . . . Machine Analysis 207 | . . . . 207 . . . . . . . . . . . . . . Jamming 1 | . . . . . . . . 1 . . . . . . . . . . ECM 1 | . . . . . . . . . . . . . . . 1 . . . Robot Analysis Total . | . . . . . . . . . . . . . . . . . . . Derelict Logs Recovered . | . . . . . . . . . . . . . . . . . . . Drone Launches . | . . . . . . . . . . . . . . . . . . . Drone Recoveries . | . . . . . . . . . . . . . . . . . . . Exploration | -11 -10 -9 -8 -7 -7 -7 -7 -5 -5 -5 -4 -4 -4 -3 -3 -2 -2 -2 ------------- Run | Yrd Mat Mat Mat Fac Sto Rec Scr Fac Was Fac Fac Ext Cet Res Qua Res Tes Frg Turns Passed 18894 | 93 891 1922 1960 458 73 78 319 707 34 391 620 1927 462 2188 736 2629 1949 1457 Spaces Moved 12639 | 37 429 957 838 937 187 244 976 1165 113 763 834 1087 214 1081 337 1154 683 603 Core 249 | . . . . . . . . . . . 48 71 . . . . . 130 Treads 5965 | . 378 957 838 . . . . . . . 4 10 50 1081 337 1154 683 473 Legs 1247 | 37 40 . . . . . . . . . . 1006 164 . . . . . Wheels 11 | . 11 . . . . . . . . . . . . . . . . . Hover . | . . . . . . . . . . . . . . . . . . . Flight 5167 | . . . . 937 187 244 976 1165 113 763 782 . . . . . . . Fastest Speed 28 | 120 110 160 160 28 28 28 28 28 28 28 28 50 120 160 160 160 163 50 Average Speed 102 | 120 154 160 162 28 28 28 28 28 28 29 37 120 130 160 160 162 166 154 Slowest Speed 250 | 120 160 160 166 28 28 28 28 28 28 31 180 190 240 160 160 163 170 250 Overloaded Moves . | . . . . . . . . . . . . . . . . . . . Propulsion Burnouts . | . . . . . . . . . . . . . . . . . . . Robots Hopped 21 | . . . . 7 . . 1 6 2 1 3 1 . . . . . . Potential Cave-ins . | . . . . . . . . . . . . . . . . . . . Cave-ins Triggered . | . . . . . . . . . . . . . . . . . . . Exploration Rate (%) 48 | 3 77 74 61 27 32 68 81 23 77 28 17 86 66 36 39 33 62 33 Regions Visited 18 Branch Regions 8 Pre-discovered Areas 8 | . 1 . . . . 6 . 1 . . . . . . . . . . Known Exits Taken 9 | . . . 1 1 1 1 1 . . 1 1 . 1 . . 1 . . Unknown Exits Taken 7 | 1 1 1 . . . . . . . . . 1 . 1 1 . 1 . Scrap Searched 3 | . . . . . . . 3 . . . . . . . . . . . Spaces Dug 113 | . . . . 22 . . . 45 . 26 12 . . . 3 5 . . Terrain Destroyed 786 | . . 35 89 22 . . . 60 . 69 61 1 3 54 3 84 175 130 Melee 113 | . . . . 22 . . . 45 . 26 12 . . . 3 5 . . Projectile 119 | . . 1 8 . . . . . . . 6 1 3 37 . 37 20 6 AOE 542 | . . 34 81 . . . . 15 . 43 43 . . 16 . 38 152 120 Terrain Rammed . | . . . . . . . . . . . . . . . . . . . Walls Destroyed . | . . . . . . . . . . . . . . . . . . . Machines Disabled . | . . . . . . . . . . . . . . . . . . . Actions | -11 -10 -9 -8 -7 -7 -7 -7 -5 -5 -5 -4 -4 -4 -3 -3 -2 -2 -2 --------- Run | Yrd Mat Mat Mat Fac Sto Rec Scr Fac Was Fac Fac Ext Cet Res Qua Res Tes Frg Total 16389 | 67 550 1216 1188 1047 201 249 1018 1445 113 863 1081 1522 335 1371 471 1572 1216 864 Wait 1499 | 17 14 104 73 27 9 2 39 192 . 29 161 30 26 124 54 188 331 79 Move 12582 | 36 428 956 837 923 186 243 973 1153 109 760 827 1084 213 1080 336 1153 682 603 Hop 19 | . . . . 6 . . 1 6 1 1 3 1 . . . . . . Pick Up 241 | 2 21 19 14 4 . . . 3 1 8 8 63 14 33 9 15 20 7 Fast Attach 109 | . 1 7 10 4 . 1 . 7 . 5 7 15 5 11 7 14 11 4 Attach 168 | . 13 2 6 8 . . . 2 . 6 10 32 5 19 9 11 13 32 Detach 58 | . 1 . 1 5 . . . 3 . 4 5 5 3 5 6 5 3 12 Swap 196 | 1 4 12 30 6 1 . 4 5 . 3 . 16 11 5 14 39 38 7 Drop 229 | 1 6 23 30 11 1 1 1 6 2 1 13 25 23 24 10 23 20 8 Fire 888 | 10 53 89 184 10 . . . 7 . 9 18 80 27 69 20 116 95 101 Melee 208 | . 9 2 2 43 4 1 . 55 . 37 29 10 . 1 6 6 3 . Ram . | . . . . . . . . . . . . . . . . . . . Kick 6 | . . . . . . . . . . . . 6 . . . . . . Crush 7 | . . 2 1 . . . . . . . . 1 . . . 2 . 1 Escape Stasis 16 | . . . . . . . . . . . . 6 . . . . . 10 Rewire 142 | . . . . . . . . . . . . 142 . . . . . . Trap . | . . . . . . . . . . . . . . . . . . . Miscellaneous 21 | . . . . . . 1 . 6 . . . 6 8 . . . . . Route ------- -11/Scrapyard -10/Materials (discovered 5 exits: *Mat x3 / [*Min x2]) -9/Materials (discovered 4 exits: *Mat x3 / *Min) -8/Materials -7/Factory (discovered 2 exits: *Sto / *Low) -7/Storage -7/Recycling -7/Scraptown -5/Factory (discovered 2 exits: Upp x2) -5/Waste -5/Factory (discovered 6 exits: *Fac x4 / Upp x2) -4/Factory (discovered 6 exits: Res x4 / *Upp / *Ext) -4/Extension (discovered 3 exits: *Res x2 / *Cet) -4/Cetus (discovered 2 exits: *Res / [*Arc]) -3/Research (discovered 2 exits: *Res / *Qua) -3/Quarantine -2/Research (discovered 3 exits: *Acc / *Tes x2) -2/Testing (discovered 3 exits: *Acc / [*Sec] / *Frg) -2/Protoforge History --------- Turn | Location | Event 1 | -11/Scrapyard | Discovered new exit (range 2) 94 | -11/Scrapyard | Entered Materials 302 | -10/Materials | Build established: Mutant 317 | -10/Materials | Discovered new exit (range 5) 593 | -10/Materials | Discovered new exit (range 12) 596 | -10/Materials | Discovered new exit (range 16) 622 | -10/Materials | Core integrity fell below 50% 696 | -10/Materials | Lost 8 parts (1p2n1u4w) 718 | -10/Materials | Discovered new exit (range 15) 813 | -10/Materials | Discovered new exit (range 16) 985 | -10/Materials | Entered another Materials area 985 | -9/Materials | Evolved 2 slots: Propulsion x1, Utility x1 1499 | -9/Materials | Discovered new exit (range 4) 1634 | -9/Materials | Identified exit to Mines 1869 | -9/Materials | Discovered new exit (range 5) 2155 | -9/Materials | Central database locked down 2286 | -9/Materials | Discovered new exit (range 10) 2706 | -9/Materials | Build established: Scavenger-Mutant 2907 | -9/Materials | Entered another Materials area 2907 | -8/Materials | Evolved 2 slots: Propulsion x1, Utility x1 3932 | -8/Materials | Discovered new exit (range 4) 3937 | -8/Materials | Identified exit to Factory 4207 | -8/Materials | Garrison activated, responded to threat 4406 | -8/Materials | Lost 4 parts (1n1u2w) 4507 | -8/Materials | First assault squad dispatched 4867 | -8/Materials | Entered Factory 4867 | -7/Factory | Evolved 2 slots: Propulsion x1, Utility x1 5124 | -7/Factory | Discovered new exit (range 7) 5125 | -7/Factory | Identified exit to Lower Caves 5246 | -7/Factory | Discovered new exit (range 16) 5250 | -7/Factory | Identified exit to Storage 5325 | -7/Factory | Entered Storage 5330 | -7/Storage | Identified exit to Recycling 5384 | -7/Storage | Used back door to open Recycling access 5398 | -7/Storage | Entered Recycling 5398 | -7/Recycling | Accompanied by 1 ally 5470 | -7/Recycling | Scanned before Scraplab entrance 5474 | -7/Recycling | Entered Scraplab 5476 | -7/Recycling | Discovered new exit (range 2) 5476 | -7/Recycling | Identified exit to Scraptown 5476 | -7/Recycling | Entered Scraptown 5552 | -7/Scraptown | Visited Cave Peace 5563 | -7/Scraptown | Visited The Evicted 5568 | -7/Scraptown | Visited Cyclists 5572 | -7/Scraptown | Visited Assassins FH 5588 | -7/Scraptown | Visited Fellowship of the Rings 5593 | -7/Scraptown | Visited Awakened 5606 | -7/Scraptown | Build established: Hacker-Sprinter 5635 | -7/Scraptown | Visited UFD Registry 5635 | -7/Scraptown | Registered with UFD as "Steamstep" 5641 | -7/Scraptown | Visited LU-1G1's Boring Crew 5650 | -7/Scraptown | Visited Science Guys 5660 | -7/Scraptown | Received an X-ray algorithm 5661 | -7/Scraptown | Visited Infowarlord's Domain 5662 | -7/Scraptown | Found Exp. Sensor Array 5668 | -7/Scraptown | Visited Supply Room 5674 | -7/Scraptown | Visited Abandonware Association 5677 | -7/Scraptown | Learned abandonware demo "KABOOM.EXE" 5683 | -7/Scraptown | Visited Supply Room 5694 | -7/Scraptown | Visited Observation Area 5707 | -7/Scraptown | Visited Junk Cannon Lab 5712 | -7/Scraptown | Visited Modified Component R&D 5739 | -7/Scraptown | Met Optimus 5739 | -7/Scraptown | Accepted into 0bPrime 5776 | -7/Scraptown | Discovered new exit (range 3) 5776 | -7/Scraptown | Identified exit to Factory 5795 | -7/Scraptown | Entered Factory 5795 | -5/Factory | Evolved 4 slots: Propulsion x1, Utility x2, Weapon x1 5910 | -5/Factory | Spotted B-75 Beast 6108 | -5/Factory | Loaded intel: 8 recycling unit locations 6191 | -5/Factory | Identified exit to Upper Caves 6497 | -5/Factory | Learned location of Protoforge (-2) 6502 | -5/Factory | Sucked down chute 6502 | -5/Factory | Entered Waste 6505 | -5/Waste | Spotted C-40 Crusher 6508 | -5/Waste | Spotted C-40 Crusher 6510 | -5/Waste | Spotted C-40 Crusher 6511 | -5/Waste | Spotted C-40 Crusher 6519 | -5/Waste | Spotted C-40 Crusher 6522 | -5/Waste | Spotted C-40 Crusher 6525 | -5/Waste | Discovered new exit (range 11) 6531 | -5/Waste | Identified exit to Factory 6536 | -5/Waste | Entered Factory 6626 | -5/Factory | Identified exit to Factory 6696 | -5/Factory | Loaded intel: 8 recycling unit locations 6753 | -5/Factory | Lost 3 parts (2u1w) 6927 | -5/Factory | Entered another Factory area 6927 | -4/Factory | Evolved 2 slots: Power x1, Weapon x1 6946 | -4/Factory | Loaded intel: 8 recycling unit locations 6950 | -4/Factory | Spotted B-86 Titan 7096 | -4/Factory | Repaired Broken Hvy. Siege Treads 7222 | -4/Factory | Fabricated Hvy. Siege Treads? 7309 | -4/Factory | Discovered new exit (range 8) 7311 | -4/Factory | Identified exit to Upper Caves 7315 | -4/Factory | Identified exit to Research 7369 | -4/Factory | Discovered new exit (range 16) 7386 | -4/Factory | Fabricated Hvy. Siege Treads? 7473 | -4/Factory | Lost 4 parts (1p1n1u1w) 7540 | -4/Factory | Lost 6 parts (1p3n1u1w) 7546 | -4/Factory | Identified exit to Extension 7547 | -4/Factory | Entered Extension 7631 | -4/Extension | Build established: Hacker-Mutant 7732 | -4/Extension | Energy Cycler disabled 7732 | -4/Extension | Rescued a captive Derelict 7738 | -4/Extension | Rescued a captive Derelict 7742 | -4/Extension | Rescued a captive Derelict 7745 | -4/Extension | Rescued a captive Derelict 8030 | -4/Extension | Loaded intel: 2 recycling unit locations 8124 | -4/Extension | Lost 8 allies 8186 | -4/Extension | Spotted B-86 Titan 8275 | -4/Extension | Lost 3 parts (1p2w) 8367 | -4/Extension | Build established: Scavenger-Tank 8461 | -4/Extension | Core integrity fell below 50% 8491 | -4/Extension | Lost 7 parts (5n1u1w) 8600 | -4/Extension | Destroyed B-86 Titan 8608 | -4/Extension | Lost 5 parts (1p2n2w) 8647 | -4/Extension | Spotted B-86 Titan 8668 | -4/Extension | Destroyed B-86 Titan 8690 | -4/Extension | Discovered exit to Research (range 15) 8698 | -4/Extension | Lost 6 parts (2p3n1u) 8852 | -4/Extension | Extracted ID and sensor layout for unrecognized location from A7's data core 9441 | -4/Extension | Discovered exit to Research (range 10) 9442 | -4/Extension | Found Launcher Loader 9443 | -4/Extension | Discovered new exit (range 6) 9474 | -4/Extension | Entered Cetus 9474 | -4/Cetus | Accompanied by 7 allies 9478 | -4/Cetus | System corruption reached 10% 9490 | -4/Cetus | Spotted Cetus Guard 9490 | -4/Cetus | Spotted Cetus Guard 9494 | -4/Cetus | Spotted Cetus Guard 9502 | -4/Cetus | Allies destroyed Cetus Guard 9509 | -4/Cetus | Allies destroyed Cetus Guard 9509 | -4/Cetus | Spotted Cetus Guard 9518 | -4/Cetus | Destroyed Cetus Guard 9531 | -4/Cetus | Destroyed Cetus Guard 9560 | -4/Cetus | Lost 5 allies 9694 | -4/Cetus | Ran an X-ray algorithm 9709 | -4/Cetus | Discovered new exit (range 16) 9770 | -4/Cetus | Spotted Cetus Guard 9770 | -4/Cetus | Spotted Cetus Guard 9772 | -4/Cetus | Spotted Cetus Guard 9773 | -4/Cetus | Spotted Cetus Guard 9786 | -4/Cetus | Destroyed Cetus Guard 9794 | -4/Cetus | Destroyed Cetus Guard 9798 | -4/Cetus | Destroyed Cetus Guard 9801 | -4/Cetus | Allies destroyed Cetus Guard 9815 | -4/Cetus | Discovered exit to Research (range 15) 9830 | -4/Cetus | Met Revision 17 9936 | -4/Cetus | Entered Research 9936 | -3/Research | Accompanied by 2 allies 9936 | -3/Research | Evolved 2 slots: Utility x1, Weapon x1 10136 | -3/Research | Revision forces began assault on 0b10 10154 | -3/Research | Met up with Revision 17++ 10636 | -3/Research | Research terminal network offline 10746 | -3/Research | Spotted Striker 10747 | -3/Research | Spotted Executioner 10759 | -3/Research | Destroyed Striker 10783 | -3/Research | Found Prototype Processor 10783 | -3/Research | Identified Exp. Core Analyzer 10979 | -3/Research | Discovered new exit (range 18) 11242 | -3/Research | Spotted Striker 11248 | -3/Research | Destroyed Striker 11450 | -3/Research | Discovered new exit (range 18) 11530 | -3/Research | Spotted Striker 11549 | -3/Research | Spotted Executioner 11550 | -3/Research | Spotted Striker 11557 | -3/Research | Destroyed Striker 11557 | -3/Research | Destroyed Executioner 11564 | -3/Research | Destroyed Striker 11567 | -3/Research | Spotted Striker 11590 | -3/Research | Destroyed Striker 11604 | -3/Research | Lost 4 allies 11684 | -3/Research | Repaired Hvy. Treads 11746 | -3/Research | Spotted Striker 11748 | -3/Research | Spotted Striker 11806 | -3/Research | Loaded intel: 5 recycling unit locations 11810 | -3/Research | Spotted Striker 11814 | -3/Research | Spotted B-86 Titan 11830 | -3/Research | Destroyed B-86 Titan 11845 | -3/Research | Spotted Striker 11848 | -3/Research | Spotted Striker 11854 | -3/Research | Destroyed Striker 11875 | -3/Research | Destroyed Striker 11907 | -3/Research | Destroyed Striker 11930 | -3/Research | Lost 9 parts (2p2n2u3w) 12006 | -3/Research | Spotted Striker 12016 | -3/Research | Destroyed Striker 12124 | -3/Research | Entered Quarantine 12219 | -3/Quarantine | Found Alien Artifact 12399 | -3/Quarantine | Found Alien Artifact 12436 | -3/Quarantine | Discovered new exit (range 11) 12508 | -3/Quarantine | System corruption reached 10% 12541 | -3/Quarantine | Lost 3 parts (1n1u1w) 12545 | -3/Quarantine | Destroyed 7 combat bots 12589 | -3/Quarantine | Spotted Alpha 7 12607 | -3/Quarantine | Destroyed Alpha 7 12620 | -3/Quarantine | Found Prototype Device 12620 | -3/Quarantine | Identified Exp. ECM Suite 12635 | -3/Quarantine | Found Prototype Energy Gun 12635 | -3/Quarantine | Identified Enh. Gamma Rifle 12643 | -3/Quarantine | Found Prototype Processor 12643 | -3/Quarantine | Identified Exp. Targeting Computer 12681 | -3/Quarantine | Found Alien Launcher 12757 | -3/Quarantine | Scanned by Researcher 12860 | -3/Quarantine | Entered Research 12860 | -2/Research | Evolved 2 slots: Utility x1, Weapon x1 13148 | -2/Research | Build established: Scavenger-Executioner 14349 | -2/Research | Discovered new exit (range 10) 14362 | -2/Research | Identified exit to Access 14696 | -2/Research | System corruption reached 10% 15323 | -2/Research | Identified exit to Testing 15489 | -2/Research | Entered Testing 15780 | -2/Testing | Found Prototype Device 15780 | -2/Testing | Identified AEGIS Remote Shield 15810 | -2/Testing | Spotted PL-6X3ZHNH19V 15839 | -2/Testing | Destroyed PL-6X3ZHNH19V 16173 | -2/Testing | Found Prototype Protection 16173 | -2/Testing | Identified Centrium Heavy Armor Plating 16315 | -2/Testing | Found Prototype Energy Cannon 16373 | -2/Testing | Identified Disintegrator 16392 | -2/Testing | Lost 4 parts (1n1u2w) 16393 | -2/Testing | Discovered exit to Access (range 13) 16422 | -2/Testing | Destroyed 7 combat bots 16472 | -2/Testing | Found Prototype Energy Gun 16739 | -2/Testing | First assault squad dispatched 16899 | -2/Testing | Spotted Fortress 16988 | -2/Testing | Destroyed Fortress 17046 | -2/Testing | Found Prototype Device 17046 | -2/Testing | Identified Thermal Barrier 17429 | -2/Testing | Discovered new exit (range 6) 17429 | -2/Testing | Discovered new exit (range 6) 17438 | -2/Testing | Entered Protoforge 17522 | -2/Protoforge | Superfortress began startup sequence 17560 | -2/Protoforge | Spotted B-90 Cyclops 17586 | -2/Protoforge | Spotted Hotshot 17589 | -2/Protoforge | Spotted Hotshot 17589 | -2/Protoforge | Destroyed B-90 Cyclops 17597 | -2/Protoforge | Destroyed Hotshot 17613 | -2/Protoforge | Destroyed Hotshot 18376 | -2/Protoforge | Spotted Hotshot 18376 | -2/Protoforge | Spotted Hotshot 18376 | -2/Protoforge | Spotted AP7-3 18386 | -2/Protoforge | Destroyed Hotshot 18394 | -2/Protoforge | Destroyed Hotshot 18415 | -2/Protoforge | Spotted AP7-3 18438 | -2/Protoforge | First assault squad dispatched 18506 | -2/Protoforge | System corruption reached 30% 18529 | -2/Protoforge | Destroyed AP7-3 18575 | -2/Protoforge | Core integrity fell below 50% 18591 | -2/Protoforge | Destroyed AP7-3 18621 | -2/Protoforge | Lost 16 parts (1p4n1u10w) 18737 | -2/Protoforge | Identified Subatomic Replicator 18738 | -2/Protoforge | Used Subatomic Replicator to replicate Exp. Biometal Heavy Treads 18771 | -2/Protoforge | Spotted EXE-6 18773 | -2/Protoforge | Spotted EXE-6 18778 | -2/Protoforge | Spotted Decapitator 18778 | -2/Protoforge | Spotted Decapitator 18806 | -2/Protoforge | Lost 9 parts (2p2n2u3w) 18815 | -2/Protoforge | Core integrity fell below 20% 18815 | -2/Protoforge | Identified Phase Redirector 18816 | -2/Protoforge | Identified Sigix Terminator 18817 | -2/Protoforge | Fired Sigix Terminator 18817 | -2/Protoforge | Destroyed Decapitator 18817 | -2/Protoforge | Destroyed Decapitator 18879 | -2/Protoforge | Spotted EXE-6 18879 | -2/Protoforge | Spotted EXE-6 18895 | -2/Protoforge | Destroyed by EXE-6 with Concept XC Strikerail Last Messages --------------- 18815_ Identified Phase Redirector. 18816_ System corrupted: Imp. Coolant Injector rejected. 18816_ Identified Sigix Terminator. 18817_ Sigix Terminator expended. [Achievement: Hard Hitter] 18817_ P-80 Master destroyed. 18817_ Machine disabled. 18817_ Recycling Unit disabled. 18817_ Adv. Component Analysis Suite tumbles out of recycling unit. 18828_ N-04 Retriever collects Imp. Coolant Injector. 18833_ System corrupted: Energy discharge (-17). 18850_ S 7R|D UAZOCUJPCDV>:#R|N 18886_ J>YLHPOHN YUJQTT3T67P,EM 18889_ Penetrated by Slug. 18894_ Exp. Core Analyzer destroyed. 18894_ Penetrated by Slug. [Achievement: Punisher] Map ----- +----------------------------------------------------+ | ?????????????????????????????????????????????????? | | ?????????????????????????????????????????????????? | | ?????????????????????????????????????????????????? | | ?????????????????????????????????????????????????? | | ?????????????????????????????????????????????????? | | ?????????????????????????????????????????????????? | | ?????????????????????????????????????????????????? | | ?????????????????????????????????????????????????? | | ?????????????????????????????????????????????????? | | ?????????????????????????????????????????????????? | | ??????????????????????? "?????????????????????? | | ?????????????????????"" "" ???????????????????? | | ??????????????????"""""" "????????????????? | | ????????????????""""""""" " """ ??????????????? | | ??????????????""""""""""" "" """ ????????????? | | ??????????????""""""""""" "" " "" ????????????? | | ?????????????""""""""""""" "" ???????????? | | ?????????????""""""""""""" " " "" "" ? ????????? | | ????????????"""""""""""""" " " "???????? | | ????????????"""""""""""""" " " ???????? | | ????"""""""""""""""""""""" #??????? | | """""""""""""""""""""""""" #??????? | | """""""""""""""""""""""""" " ??????? | | """""""""""""""""""""""""" " E ??????? | | """""""""""""""""""""""""" E #??????? | | """""""""""""""""""""""""@ "#??????? | | """"""""""""""""""""""""" #??????? | | """"""""""""""""""""""""" #??????? | | """""""""""""""""""""""" #??????? | | """"""""""""""""""""""" #??????? | | """"""""""""""""""""" #??????? | | """"""""""""""""""" #??????? | | """"""""""""""""" #??????? | | """"""""""""""" #??????? | | """"""""" ##?????? | | " "#?????? | | " """"" "#?????? | | "#?????? | | ##?????? | | """ """ #??????? | | " """" "" #??????? | | " "" #??????? | | " " #??????? | | " #??????? | | """"" "" "" #??????? | | " " " #??????? | | " " #??????? | | """"""""" #??????? | | """""""""" #??????? | | " """""""" """"#??????? | +----------------------------------------------------+ Best States ------------- Heat Dissipation 153 Coolant Potential 100 Energy Generation 45 Energy Capacity 1030 Matter Stores 300 Matter Capacity 300 Sight Range 20 Robot Scan Range 20 Terrain Scan Density 10 Additional Mass Support 9 Base Temperature (-) 200 EM Shielding 4 Armor Coverage 2400 Resistance: KI 30 Propulsion Shielding 90 Weapon Shielding 90 Point Defense Rating 240 Phase Shifting 15 Evasion (%) 76 Targeting Accuracy 12 Target Analysis 8 Core Analysis 8 Recoil Reduction 6 Offensive Hacking 34 Defensive Hacking 10 Item Schematics ----------------- Imp. Sensor Array | -7/Recycling | Hacked Imp. VTOL Module | -7/Recycling | Hacked Nuclear Pulse Array | -7/Recycling | Hacked Adv. Hacking Suite | -5/Factory | Hacked Hvy. Siege Treads | -5/Factory | Scanalyzed Prc. Energy Filter | -3/Quarantine | Archive Cld. Antimatter Reactor | -2/Testing | Archive Adv. Gravity Neutralizer | -2/Testing | Archive Ragnarok Missile Launcher | -2/Testing | Archive Robot Schematics ------------------ None Fabricated ------------ Hvy. Siege Treads | x1 | -4/Factory Hvy. Siege Treads | x1 | -4/Factory Repaired ---------- Hvy. Siege Treads | 7% | -4/Factory | Broken Hvy. Treads | 19% | -3/Research Studied --------- Autogun | -9/Materials | Hacked Lgt. Treads | -9/Materials | Hacked Lgt. Nuclear Core | -8/Materials | Hacked Alien Tech Used ----------------- Subatomic Replicator Phase Redirector Sigix Terminator Achievements -------------- Hard Hitter No Explosion For You Nope Punisher Recruitment Drive Revolutionary Research Super-what Now? Challenges ------------ None Game ------ Seed GreatRingTelecube Manual? 0 Play Time 04:23:58 Cumulative 73.7 hours Start 2026.09.22 @ 04:59:26 End 2026.09.22 @ 09:36:38 Sessions 1 Manual Loads 0 Difficulty Rogue Special Mode None Game No. 66 Rogue 63 Adventurer 3 Explorer 0 Win Type - Total 3 Types 2/1/0/0/0/0/0/0/0/0 Lore% 57 Gallery% 48 Achievement% 47 Wizard Run 0 Options --------- Layout 1 ASCII 0 Keyboard 0 Movement Mouse Keybinds 0 Fullscreen 1 Font 32/SmallcapsGlow Map View 50x35 Zoom Use 0% Tactical HUD 1 Map Filters NONE Filters NONE Steam 1 RUN: e7e0a897-4471-41b6-ac41-da8d9c988bbb